fUSD/lending_fUSD_20250511
["ID","MTS","AMOUNT","RATE_DAILY","PERIOD"]
[360706430,1746942645445,-400.0,0.00019387,2]
[360706431,1746942645457,-400.0,0.00019387,2]
[360706432,1746942645466,-548.72,0.00019387,2]
[360706433,1746942645475,-400.0,0.00019387,2]
[360706434,1746942645486,-400.0,0.00019387,2]
[360706435,1746942645495,-400.0,0.00019387,2]
[360706436,1746942645505,-586.24,0.00019387,2]
[360706437,1746942645514,-400.0,0.00019387,2]
[360706438,1746942645524,-400.0,0.00019387,2]
[360706439,1746942645533,-400.0,0.00019387,2]
[360706440,1746942645543,-400.0,0.00019387,2]
[360706441,1746942645552,-400.0,0.00019387,2]
[360706442,1746942645562,-400.0,0.00019387,2]
[360706443,1746942645571,-400.0,0.00019387,2]
[360706444,1746942645581,-591.39,0.00019387,2]
[360706445,1746942645590,-400.0,0.00019387,2]
[360706446,1746942645599,-400.0,0.00019387,2]
[360706447,1746942645609,-400.0,0.00019387,2]
[360706448,1746942645619,-400.0,0.00019387,2]
[360706449,1746942645628,-495.10364043,0.00019387,2]
[360706450,1746942645638,-6308.59,0.00019387,2]
[360706451,1746942645648,-400.0,0.00019387,2]
[360706452,1746942645660,-400.0,0.00019387,2]
[360706453,1746942645670,-232.91201084,0.00019387,2]
[360706454,1746942645679,-400.0,0.00019387,2]
[360706455,1746942645688,-400.0,0.00019387,2]
[360706456,1746942645697,-400.0,0.00019387,2]
[360706457,1746942645707,-400.0,0.00019387,2]
[360706458,1746942645717,-400.0,0.00019387,2]
[360706459,1746942645727,-400.0,0.00019387,2]
[360706461,1746942645738,-400.0,0.00019387,2]
[360706462,1746942645748,-400.0,0.00019387,2]
[360706463,1746942645758,-400.0,0.00019387,2]
[360706464,1746942645767,-400.0,0.00019387,2]
[360706465,1746942645776,-400.0,0.00019387,2]
[360706466,1746942645786,-400.0,0.00019387,2]
[360706467,1746942645795,-400.0,0.00019387,2]
[360706468,1746942645805,-414.38,0.00019387,2]
[360706469,1746942645815,-400.0,0.00019387,2]
[360706470,1746942645825,-555.76,0.00019387,2]
[360706471,1746942645834,-400.0,0.00019387,2]
[360706472,1746942645844,-400.0,0.00019387,2]
[360706473,1746942645854,-400.0,0.00019387,2]
[360706474,1746942645863,-400.0,0.00019387,2]
[360706475,1746942645873,-400.0,0.00019387,2]
[360706476,1746942645882,-400.0,0.00019387,2]
[360706477,1746942645891,-400.0,0.00019387,2]
[360706478,1746942645901,-400.0,0.00019387,2]
[360706479,1746942645911,-400.0,0.00019387,2]
[360706480,1746942645920,-498.3833925,0.00019387,2]
[360706481,1746942645929,-400.0,0.00019387,2]
[360706482,1746942645938,-400.0,0.00019387,2]
[360706483,1746942645948,-400.0,0.00019387,2]
[360706484,1746942645957,-400.0,0.00019387,2]
[360706485,1746942645966,-400.0,0.00019387,2]
[360706486,1746942645976,-400.0,0.00019387,2]
[360706487,1746942645985,-400.0,0.00019387,2]
[360706488,1746942645995,-400.0,0.00019387,2]
[360706489,1746942646004,-400.0,0.00019387,2]
[360706490,1746942646013,-400.0,0.00019387,2]
[360706491,1746942646023,-400.0,0.00019387,2]
[360706492,1746942646033,-392.86,0.00019387,2]
[360706493,1746942646043,-400.0,0.00019387,2]
[360706494,1746942646052,-400.0,0.00019387,2]
[360706495,1746942646062,-400.0,0.00019387,2]
[360706496,1746942646072,-400.0,0.00019387,2]
[360706497,1746942646081,-400.0,0.00019387,2]
[360706498,1746942646092,-400.0,0.00019387,2]
[360706499,1746942646101,-312.69,0.00019387,2]
[360706500,1746942646111,-400.0,0.00019387,2]
[360706501,1746942646120,-400.0,0.00019387,2]
[360706502,1746942646129,-497.31,0.00019387,2]
[360706503,1746942646139,-400.0,0.00019387,2]
[360706504,1746942646149,-400.0,0.00019387,2]
[360706505,1746942646158,-400.0,0.00019387,2]
[360706506,1746942646168,-400.0,0.00019387,2]
[360706507,1746942646178,-400.0,0.00019387,2]
[360706508,1746942646190,-501.46945469,0.00019387,2]
[360706509,1746942646199,-400.0,0.00019387,2]
[360706510,1746942646209,-400.0,0.00019387,2]
[360706511,1746942646219,-400.0,0.00019387,2]
[360706512,1746942646229,-400.0,0.00019387,2]
[360706513,1746942646239,-400.0,0.00019387,2]
[360706514,1746942646249,-417.81120573,0.00019387,2]
[360706515,1746942646258,-517.16,0.00019388,2]
[360706516,1746942646268,-400.0,0.00019388,2]
[360706517,1746942646277,-400.0,0.00019388,2]
[360706518,1746942646287,-400.0,0.00019388,2]
[360706519,1746942646296,-269.67528135,0.00019388,2]
[360706520,1746942646305,-400.0,0.00019388,2]
[360706521,1746942646315,-400.0,0.00019388,2]
[360706522,1746942646324,-400.0,0.00019388,2]
[360706523,1746942646334,-400.0,0.00019388,2]
[360706524,1746942646344,-493.18,0.00019388,2]
[360706525,1746942646353,-539.95006206,0.00019388,2]
[360706527,1746942646363,-7847.46448761,0.00019422,2]
[360706529,1746942646372,-169.57122595,0.00019469,2]
[360706531,1746942646381,-400.0,0.00019485,2]
[360706533,1746942646391,-400.0,0.00019485,2]
[360706535,1746942646401,-417.35,0.00019485,2]
[360706536,1746942646411,-228.55,0.00019485,2]
[360706537,1746942646421,-400.0,0.00019485,2]
[360706538,1746942646431,-400.0,0.00019485,2]
[360706539,1746942646441,-7847.46448761,0.00019491,2]
[360706540,1746942646450,-1156.1,0.000195,2]
[360706541,1746942646460,-1156.1,0.000195,2]
[360706542,1746942646470,-802.85,0.000195,2]
[360706543,1746942646479,-4044.69227713,0.00019537,2]
[360706544,1746942646488,-169.5712259,0.00019555,2]
[360706545,1746942646498,-7847.46448761,0.00019559,2]
[360706546,1746942646508,-315.76,0.00019569,2]
[360706547,1746942646518,-400.0,0.00019569,2]
[360706548,1746942646527,-320.60749775,0.00019569,2]
[360706549,1746942646536,-400.0,0.00019569,2]
[360706550,1746942646546,-807.23329096,0.00019571,2]
[360706551,1746942646555,-2993.372,0.00019601,2]
[360706552,1746942646565,-150.0,0.0001961,2]
[360706553,1746942646574,-7847.46448761,0.00019627,2]
[360706554,1746942646583,-243.24288992,0.0001964,2]
[360706555,1746942646595,-169.5712259,0.00019641,2]
[360706556,1746942646604,-4774.50458458,0.00019658,2]
[360706557,1746942646614,-200.0,0.00019662,2]
[360706558,1746942646623,-4774.50458451,0.00019685,2]
[360706559,1746942646633,-7847.46448761,0.00019695,2]
[360706560,1746942646642,-532.39413455,0.00019699,2]
[360706561,1746942646652,-234.32077701,0.000197,2]
[360706562,1746942646665,-4774.50458451,0.00019712,2]
[360706563,1746942646674,-150.0,0.00019727,2]
[360706564,1746942646683,-169.5712259,0.00019728,2]
[360706565,1746942646692,-1187.19200746,0.00019729,2]
[360706567,1746942646702,-4774.50458451,0.00019739,2]
[360706569,1746942646711,-400.0,0.00019743,2]
[360706570,1746942646721,-400.0,0.00019743,2]
[360706571,1746942646730,-150.0,0.00019753,2]
[360706572,1746942646741,-400.0,0.00019758,2]
[360706573,1746942646751,-400.0,0.00019758,2]
[360706574,1746942646761,-269.23550473,0.00019758,2]
[360706575,1746942646770,-322.2,0.00019758,2]
[360706576,1746942646779,-400.0,0.00019758,2]
[360706577,1746942646789,-400.0,0.00019758,2]
[360706578,1746942646798,-400.0,0.00019758,2]
[360706579,1746942646807,-400.0,0.00019758,2]
[360706580,1746942646815,-514.0,0.00019758,2]
[360706581,1746942646825,-400.0,0.00019758,2]
[360706582,1746942646834,-400.0,0.00019758,2]
[360706583,1746942646843,-400.0,0.00019758,2]
[360706584,1746942646853,-382.72,0.00019758,2]
[360706585,1746942646862,-400.0,0.00019758,2]
[360706586,1746942646872,-400.0,0.00019758,2]
[360706587,1746942646882,-400.0,0.00019758,2]
[360706588,1746942646891,-400.0,0.00019758,2]
[360706589,1746942646901,-210.44,0.00019758,2]
[360706590,1746942646911,-400.0,0.00019758,2]
[360706591,1746942646920,-400.0,0.00019758,2]
[360706592,1746942646930,-450.55,0.00019758,2]
[360706593,1746942646939,-400.0,0.00019758,2]
[360706594,1746942646949,-400.0,0.00019758,2]
[360706595,1746942646958,-400.0,0.00019758,2]
[360706596,1746942646968,-400.0,0.00019758,2]
[360706597,1746942646977,-420.42,0.00019758,2]
[360706598,1746942646987,-420.96055502,0.00019758,2]
[360706599,1746942646996,-400.0,0.00019758,2]
[360706600,1746942647006,-400.0,0.00019758,2]
[360706601,1746942647015,-400.0,0.00019758,2]
[360706602,1746942647025,-400.0,0.00019758,2]
[360706603,1746942647035,-400.0,0.00019758,2]
[360706604,1746942647044,-400.0,0.00019758,2]
[360706605,1746942647053,-400.0,0.00019758,2]
[360706606,1746942647063,-400.0,0.00019758,2]
[360706607,1746942647072,-400.0,0.00019758,2]
[360706608,1746942647082,-400.0,0.00019758,2]
[360706609,1746942647091,-400.0,0.00019758,2]
[360706610,1746942647101,-539.25,0.00019758,2]
[360706611,1746942647111,-192.01,0.00019758,2]
[360706612,1746942647120,-400.0,0.00019758,2]
[360706613,1746942647130,-544.52,0.00019758,2]
[360706614,1746942647139,-539.05727827,0.00019758,2]
[360706615,1746942647149,-400.0,0.00019758,2]
[360706616,1746942647159,-400.0,0.00019758,2]
[360706617,1746942647168,-465.61,0.00019758,2]
[360706618,1746942647178,-400.0,0.00019758,2]
[360706619,1746942647188,-400.0,0.00019758,2]
[360706620,1746942647197,-400.0,0.00019758,2]
[360706621,1746942647206,-400.0,0.00019758,2]
[360706622,1746942647215,-400.0,0.00019758,2]
[360706623,1746942647225,-400.0,0.00019758,2]
[360706624,1746942647235,-230.45,0.00019758,2]
[360706625,1746942647245,-400.0,0.00019758,2]
[360706626,1746942647255,-400.0,0.00019758,2]
[360706627,1746942647264,-400.0,0.00019758,2]
[360706628,1746942647274,-445.05549792,0.00019758,2]
[360706629,1746942647283,-400.0,0.00019758,2]
[360706630,1746942647292,-500.0,0.00019758,2]
[360706631,1746942647302,-400.0,0.00019758,2]
[360706632,1746942647311,-402.90454395,0.00019758,2]
[360706633,1746942647320,-500.0,0.00019758,2]
[360706634,1746942647330,-266.84388526,0.00019758,2]
[360706635,1746942647339,-400.0,0.00019758,2]
[360706636,1746942647349,-400.0,0.00019758,2]
[360706637,1746942647358,-400.0,0.00019758,2]
[360706638,1746942647367,-400.0,0.00019758,2]
[360706639,1746942647377,-424.62,0.00019758,2]
[360706640,1746942647386,-400.0,0.00019758,2]
[360706641,1746942647396,-400.0,0.00019758,2]
[360706642,1746942647406,-400.0,0.00019758,2]
[360706643,1746942647415,-400.0,0.00019758,2]
[360706644,1746942647424,-429.6,0.00019758,2]
[360706645,1746942647434,-400.0,0.00019758,2]
[360706646,1746942647443,-964.76,0.00019758,2]
[360706647,1746942647452,-400.0,0.00019758,2]
[360706648,1746942647461,-1001.55,0.00019758,2]
[360706649,1746942647471,-480.24725117,0.00019758,2]
[360706650,1746942647521,-400.0,0.00019758,2]
[360706651,1746942647531,-411.04,0.00019758,2]
[360706652,1746942647540,-400.0,0.00019758,2]
[360706653,1746942647549,-400.0,0.00019758,2]
[360706654,1746942647558,-548.72,0.00019758,2]
[360706655,1746942647567,-400.0,0.00019758,2]
[360706656,1746942647577,-400.0,0.00019758,2]
[360706657,1746942647586,-400.0,0.00019758,2]
[360706658,1746942647595,-400.0,0.00019758,2]
[360706659,1746942647603,-400.0,0.00019758,2]
[360706660,1746942647612,-400.0,0.00019758,2]
[360706661,1746942647622,-400.0,0.00019758,2]
[360706662,1746942647630,-586.24,0.00019758,2]
[360706663,1746942647639,-400.0,0.00019758,2]
[360706664,1746942647648,-400.0,0.00019758,2]
[360706665,1746942647661,-400.0,0.00019758,2]
[360706666,1746942647670,-186.10306038,0.00019758,2]
[360706667,1746942647679,-400.0,0.00019758,2]
[360706668,1746942647688,-400.0,0.00019758,2]
[360706669,1746942647698,-400.0,0.00019758,2]
[360706670,1746942647708,-400.0,0.00019758,2]
[360706671,1746942647717,-591.39,0.00019758,2]
[360706672,1746942647726,-400.0,0.00019758,2]
[360706673,1746942647736,-400.0,0.00019758,2]
[360706674,1746942647745,-237.68,0.00019758,2]
[360706675,1746942647754,-526.27,0.00019758,2]
[360706676,1746942647763,-766.52,0.00019758,2]
[360706677,1746942647772,-400.0,0.00019758,2]
[360706678,1746942647781,-6308.59,0.00019758,2]
[360706679,1746942647790,-400.0,0.00019758,2]
[360706680,1746942647798,-400.0,0.00019758,2]
[360706681,1746942647808,-400.0,0.00019758,2]
[360706682,1746942647817,-400.0,0.00019758,2]
[360706683,1746942647826,-400.0,0.00019758,2]
[360706684,1746942647835,-400.0,0.00019758,2]
[360706685,1746942647844,-400.0,0.00019758,2]
[360706686,1746942647853,-400.0,0.00019758,2]
[360706687,1746942647862,-400.0,0.00019758,2]
[360706688,1746942647871,-400.0,0.00019758,2]
[360706689,1746942647880,-400.0,0.00019758,2]
[360706690,1746942647890,-489.12,0.00019758,2]
[360706691,1746942647898,-212.84960618,0.00019758,2]
[360706692,1746942647907,-812.34,0.00019758,2]
[360706693,1746942647917,-400.0,0.00019758,2]
[360706694,1746942647929,-422.8,0.00019758,2]
[360706695,1746942647939,-400.0,0.00019758,2]
[360706696,1746942647948,-400.0,0.00019758,2]
[360706697,1746942647957,-400.0,0.00019758,2]
[360706698,1746942647966,-449.04,0.00019758,2]
[360706699,1746942647977,-400.0,0.00019758,2]
[360706700,1746942647985,-400.0,0.00019758,2]
[360706701,1746942647995,-400.0,0.00019758,2]
[360706702,1746942648004,-400.0,0.00019758,2]
[360706703,1746942648013,-414.38,0.00019758,2]
[360706704,1746942648023,-400.0,0.00019758,2]
[360706705,1746942648031,-555.76,0.00019758,2]
[360706706,1746942648041,-400.0,0.00019758,2]
[360706707,1746942648050,-426.64,0.00019758,2]
[360706708,1746942648059,-400.0,0.00019758,2]
[360706709,1746942648068,-400.0,0.00019758,2]
[360706710,1746942648077,-450.0,0.00019758,2]
[360706711,1746942648086,-400.0,0.00019758,2]
[360706712,1746942648095,-400.0,0.00019758,2]
[360706713,1746942648104,-400.0,0.00019758,2]
[360706714,1746942648113,-400.0,0.00019758,2]
[360706715,1746942648123,-400.0,0.00019758,2]
[360706716,1746942648131,-400.0,0.00019758,2]
[360706717,1746942648141,-548.48,0.00019758,2]
[360706718,1746942648150,-400.0,0.00019758,2]
[360706719,1746942648160,-400.0,0.00019758,2]
[360706720,1746942648169,-400.0,0.00019758,2]
[360706721,1746942648179,-400.0,0.00019758,2]
[360706722,1746942648188,-400.0,0.00019758,2]
[360706723,1746942648198,-400.0,0.00019758,2]
[360706724,1746942648207,-400.0,0.00019758,2]
[360706725,1746942648217,-400.0,0.00019758,2]
[360706726,1746942648226,-400.0,0.00019758,2]
[360706727,1746942648236,-400.0,0.00019758,2]
[360706728,1746942648246,-546.83335353,0.00019758,2]
[360706729,1746942648255,-404.46410306,0.00019758,2]
[360706730,1746942648265,-400.0,0.00019758,2]
[360706731,1746942648274,-564.65,0.00019758,2]
[360706732,1746942648283,-400.0,0.00019758,2]
[360706733,1746942648294,-400.0,0.00019758,2]
[360706734,1746942648303,-400.0,0.00019758,2]
[360706735,1746942648313,-406.89068817,0.00019758,2]
[360706736,1746942648322,-400.0,0.00019758,2]
[360706737,1746942648331,-400.0,0.00019758,2]
[360706738,1746942648340,-275.27947874,0.00019758,2]
[360706739,1746942648351,-157.61882371,0.00019758,2]
[360706740,1746942648360,-400.0,0.00019758,2]
[360706741,1746942648370,-400.0,0.00019758,2]
[360706742,1746942648379,-400.0,0.00019758,2]
[360706743,1746942648397,-400.0,0.00019758,2]
[360706744,1746942648409,-443.09,0.00019758,2]
[360706745,1746942648418,-400.0,0.00019758,2]
[360706746,1746942648427,-400.0,0.00019758,2]
[360706747,1746942648437,-400.0,0.00019758,2]
[360706748,1746942648447,-450.95,0.00019758,2]
[360706749,1746942648456,-400.0,0.00019758,2]
[360706750,1746942648466,-450.0,0.00019758,2]
[360706751,1746942648476,-400.0,0.00019758,2]
[360706752,1746942648485,-400.0,0.00019758,2]
[360706753,1746942648495,-15222.87,0.00019758,2]
[360706754,1746942648504,-400.0,0.00019758,2]
[360706755,1746942648513,-400.0,0.00019758,2]
[360706756,1746942648524,-588.57,0.00019758,2]
[360706757,1746942648533,-400.0,0.00019758,2]
[360706758,1746942648542,-400.0,0.00019758,2]
[360706759,1746942648552,-400.0,0.00019758,2]
[360706760,1746942648562,-400.0,0.00019758,2]
[360706761,1746942648572,-400.0,0.00019758,2]
[360706762,1746942648581,-400.0,0.00019758,2]
[360706763,1746942648590,-400.0,0.00019758,2]
[360706764,1746942648600,-862.84,0.00019758,2]
[360706765,1746942648610,-400.0,0.00019758,2]
[360706766,1746942648619,-400.0,0.00019758,2]
[360706767,1746942648628,-500.0,0.00019758,2]
[360706768,1746942648638,-400.0,0.00019758,2]
[360706769,1746942648647,-405.09,0.00019758,2]
[360706770,1746942648659,-400.0,0.00019758,2]
[360706771,1746942648669,-400.0,0.00019758,2]
[360706772,1746942648679,-400.0,0.00019758,2]
[360706773,1746942648688,-400.0,0.00019758,2]
[360706774,1746942648699,-422.56153163,0.00019758,2]
[360706775,1746942648708,-1014.23419445,0.00019758,2]
[360706776,1746942648717,-400.0,0.00019758,2]
[360706777,1746942648729,-419.46074772,0.00019758,2]
[360706778,1746942648739,-400.0,0.00019758,2]
[360706779,1746942648749,-400.0,0.00019758,2]
[360706780,1746942648759,-400.0,0.00019758,2]
[360706781,1746942648769,-400.0,0.00019758,2]
[360706782,1746942648778,-400.0,0.00019758,2]
[360706783,1746942648787,-400.0,0.00019758,2]
[360706784,1746942648797,-400.0,0.00019758,2]
[360706785,1746942648806,-490.93,0.00019758,2]
[360706786,1746942648815,-400.0,0.00019758,2]
[360706787,1746942648825,-400.0,0.00019758,2]
[360706788,1746942648835,-400.0,0.00019758,2]
[360706789,1746942648844,-400.0,0.00019758,2]
[360706790,1746942648854,-400.0,0.00019758,2]
[360706791,1746942648864,-400.0,0.00019758,2]
[360706792,1746942648873,-400.0,0.00019758,2]
[360706793,1746942648882,-400.0,0.00019758,2]
[360706794,1746942648892,-400.0,0.00019758,2]
[360706795,1746942648901,-500.0,0.00019758,2]
[360706796,1746942648911,-400.0,0.00019758,2]
[360706797,1746942648920,-400.0,0.00019758,2]
[360706798,1746942648929,-400.0,0.00019758,2]
[360706799,1746942648939,-400.0,0.00019758,2]
[360706800,1746942648948,-400.0,0.00019758,2]
[360706801,1746942648958,-400.0,0.00019758,2]
[360706802,1746942648967,-400.0,0.00019758,2]
[360706803,1746942648977,-544.62,0.00019758,2]
[360706804,1746942648987,-400.0,0.00019758,2]
[360706805,1746942648997,-400.0,0.00019758,2]
[360706806,1746942649006,-400.0,0.00019758,2]
[360706807,1746942649016,-452.76,0.00019758,2]
[360706808,1746942649025,-1075.85,0.00019758,2]
[360706809,1746942649034,-424.27,0.00019758,2]
[360706810,1746942649044,-400.0,0.00019758,2]
[360706811,1746942649053,-400.0,0.00019758,2]
[360706812,1746942649062,-70994.1421,0.00019759,2]
[360706813,1746942649071,-4774.50458451,0.00019766,2]
[360706814,1746942649081,-250.1448782,0.00019778,2]
[360706815,1746942649090,-150.0,0.0001978,2]
[360706816,1746942649100,-439.53413916,0.00019783,2]
[360706817,1746942649110,-489.73134718,0.00019785,2]
[360706818,1746942649119,-154.2280362,0.00019786,2]
[360706819,1746942649128,-4774.50458451,0.00019792,2]
[360706820,1746942649138,-150.0,0.00019795,2]
[360706821,1746942649148,-400.0,0.00019799,2]
[360706822,1746942649157,-400.0,0.00019799,2]
[360706823,1746942649167,-332.72432913,0.00019799,2]
[360706824,1746942649177,-429.87757787,0.00019799,2]
[360706825,1746942649187,-400.0,0.00019799,2]
[360706826,1746942649197,-400.0,0.00019799,2]
[360706827,1746942649206,-400.0,0.00019799,2]
[360706828,1746942649216,-507.15,0.00019799,2]
[360706829,1746942649227,-487.58,0.00019799,2]
[360706830,1746942649237,-260.28,0.00019799,2]
[360706831,1746942649248,-400.0,0.00019799,2]
[360706832,1746942649258,-400.0,0.00019799,2]
[360706833,1746942649267,-400.0,0.00019799,2]
[360706834,1746942649277,-400.0,0.00019799,2]
[360706835,1746942649287,-464.53,0.00019799,2]
[360706836,1746942649297,-400.0,0.00019799,2]
[360706837,1746942649307,-400.0,0.00019799,2]
[360706838,1746942649317,-400.0,0.00019799,2]
[360706839,1746942649327,-400.0,0.00019799,2]
[360706840,1746942649337,-400.0,0.00019799,2]
[360706841,1746942649347,-400.0,0.00019799,2]
[360706842,1746942649357,-182.53942007,0.00019799,2]
[360706843,1746942649367,-400.0,0.00019799,2]
[360706844,1746942649377,-400.0,0.00019799,2]
[360706845,1746942649387,-400.0,0.00019799,2]
[360706846,1746942649398,-400.0,0.00019799,2]
[360706847,1746942649408,-400.0,0.00019799,2]
[360706848,1746942649418,-400.0,0.00019799,2]
[360706849,1746942649428,-400.0,0.00019799,2]
[360706850,1746942649438,-400.0,0.00019799,2]
[360706851,1746942649448,-400.0,0.00019799,2]
[360706852,1746942649458,-450.0,0.00019799,2]
[360706853,1746942649467,-303.64,0.00019799,2]
[360706854,1746942649477,-400.0,0.00019799,2]
[360706855,1746942649487,-400.0,0.00019799,2]
[360706856,1746942649497,-400.0,0.00019799,2]
[360706857,1746942649507,-400.0,0.00019799,2]
[360706858,1746942649516,-400.0,0.00019799,2]
[360706859,1746942649526,-424.62,0.00019799,2]
[360706860,1746942649536,-400.0,0.00019799,2]
[360706861,1746942649546,-400.0,0.00019799,2]
[360706862,1746942649557,-400.0,0.00019799,2]
[360706863,1746942649567,-540.73619492,0.00019799,2]
[360706864,1746942649576,-964.76,0.00019799,2]
[360706865,1746942649586,-431.35102983,0.00019799,2]
[360706866,1746942649596,-1001.55,0.00019799,2]
[360706867,1746942649606,-400.0,0.00019799,2]
[360706868,1746942649615,-411.04,0.00019799,2]
[360706869,1746942649624,-400.0,0.00019799,2]
[360706870,1746942649635,-548.72,0.00019799,2]
[360706871,1746942649645,-400.0,0.00019799,2]
[360706872,1746942649656,-328.07,0.00019799,2]
[360706873,1746942649669,-400.0,0.00019799,2]
[360706874,1746942649678,-193.22990565,0.00019799,2]
[360706875,1746942649689,-400.0,0.00019799,2]
[360706876,1746942649699,-400.0,0.00019799,2]
[360706877,1746942649708,-586.24,0.00019799,2]
[360706878,1746942649718,-400.0,0.00019799,2]
[360706879,1746942649727,-400.0,0.00019799,2]
[360706880,1746942649738,-400.0,0.00019799,2]
[360706881,1746942649747,-400.0,0.00019799,2]
[360706882,1746942649758,-591.39,0.00019799,2]
[360706883,1746942649768,-400.0,0.00019799,2]
[360706884,1746942649777,-526.27,0.00019799,2]
[360706885,1746942649787,-766.52,0.00019799,2]
[360706886,1746942649797,-400.0,0.00019799,2]
[360706887,1746942649806,-6308.59,0.00019799,2]
[360706888,1746942649815,-400.0,0.00019799,2]
[360706889,1746942649825,-400.0,0.00019799,2]
[360706890,1746942649834,-273.0,0.00019799,2]
[360706891,1746942649844,-400.0,0.00019799,2]
[360706892,1746942649854,-400.0,0.00019799,2]
[360706893,1746942649863,-400.0,0.00019799,2]
[360706894,1746942649873,-415.74,0.00019799,2]
[360706895,1746942649882,-489.12,0.00019799,2]
[360706896,1746942649892,-812.34,0.00019799,2]
[360706897,1746942649902,-400.0,0.00019799,2]
[360706898,1746942649912,-400.0,0.00019799,2]
[360706899,1746942649922,-449.04,0.00019799,2]
[360706900,1746942649932,-400.0,0.00019799,2]
[360706901,1746942649941,-400.0,0.00019799,2]
[360706902,1746942649951,-414.38,0.00019799,2]
[360706903,1746942649961,-400.0,0.00019799,2]
[360706904,1746942649971,-555.76,0.00019799,2]
[360706905,1746942649980,-400.0,0.00019799,2]
[360706906,1746942649990,-426.64,0.00019799,2]
[360706907,1746942649999,-400.0,0.00019799,2]
[360706908,1746942650009,-400.0,0.00019799,2]
[360706909,1746942650018,-400.0,0.00019799,2]
[360706910,1746942650028,-400.0,0.00019799,2]
[360706911,1746942650038,-400.0,0.00019799,2]
[360706912,1746942650048,-400.0,0.00019799,2]
[360706913,1746942650057,-400.0,0.00019799,2]
[360706914,1746942650066,-400.0,0.00019799,2]
[360706915,1746942650076,-400.0,0.00019799,2]
[360706916,1746942650086,-400.0,0.00019799,2]
[360706917,1746942650095,-400.0,0.00019799,2]
[360706918,1746942650105,-400.0,0.00019799,2]
[360706919,1746942650115,-564.65,0.00019799,2]
[360706920,1746942650124,-400.0,0.00019799,2]
[360706921,1746942650134,-400.0,0.00019799,2]
[360706922,1746942650145,-400.0,0.00019799,2]
[360706923,1746942650154,-432.6,0.00019799,2]
[360706924,1746942650164,-275.1246137,0.00019799,2]
[360706925,1746942650173,-500.0,0.00019799,2]
[360706926,1746942650184,-400.0,0.00019799,2]
[360706927,1746942650194,-443.09,0.00019799,2]
[360706928,1746942650204,-400.0,0.00019799,2]
[360706929,1746942650214,-400.0,0.00019799,2]
[360706930,1746942650225,-400.0,0.00019799,2]
[360706931,1746942650234,-400.0,0.00019799,2]
[360706932,1746942650244,-400.0,0.00019799,2]
[360706933,1746942650254,-15222.87,0.00019799,2]
[360706934,1746942650263,-588.57,0.00019799,2]
[360706935,1746942650273,-400.0,0.00019799,2]
[360706936,1746942650282,-380.0,0.00019799,2]
[360706937,1746942650292,-400.0,0.00019799,2]